[Event "Titled Tuesday Blitz February 22 Early 2022"]
[White "Lodici, Lorenzo"]
[Black "Gormally, Daniel W"]
[WhiteFideId "884189"]
[BlackFideId "406465"]
[WhiteElo "2265"]
[BlackElo "2543"]
[Result "1-0"]
[Round "07"]
[TimeControl "180+1"]
[Date "2022.02.22"]
[WhiteClock "0:00:02"]
[BlackClock "0:00:02"]

1. e4 {[%clk 0:02:55]}  g6 {[%clk 0:02:58]} 2. d4 {[%clk 0:02:53]}  Nf6 {[%clk 0:02:58]} 3. e5 {[%clk 0:02:52]}  Nh5 {[%clk 0:02:58]} 4. Be2 {[%clk 0:02:52]}  d6 {[%clk 0:02:58]} 5. Nf3 {[%clk 0:02:52]}  Nc6 {[%clk 0:02:56]} 6. exd6 {[%clk 0:02:47]}  cxd6 {[%clk 0:02:54]} 7. d5 {[%clk 0:02:46]}  Nb8 {[%clk 0:02:51]} 8. Nd4 {[%clk 0:02:46]}  Nf6 {[%clk 0:02:50]} 9. c4 {[%clk 0:02:45]}  Bg7 {[%clk 0:02:50]} 10. Nc3 {[%clk 0:02:45]}  O-O {[%clk 0:02:51]} 11. O-O {[%clk 0:02:43]}  Nbd7 {[%clk 0:02:50]} 12. Re1 {[%clk 0:02:43]}  Nc5 {[%clk 0:02:50]} 13. Bf1 {[%clk 0:02:42]}  e5 {[%clk 0:02:34]} 14. dxe6 {[%clk 0:02:41]}  Nxe6 {[%clk 0:02:34]} 15. Ndb5 {[%clk 0:02:41]}  Ne8 {[%clk 0:02:09]} 16. Nd5 {[%clk 0:02:29]}  a6 {[%clk 0:02:04]} 17. Nbc3 {[%clk 0:02:27]}  Bd7 {[%clk 0:02:02]} 18. Be3 {[%clk 0:02:16]}  Bc6 {[%clk 0:02:00]} 19. Nb6 {[%clk 0:01:55]}  Rb8 {[%clk 0:01:57]} 20. Qd2 {[%clk 0:01:56]}  Nf6 {[%clk 0:01:48]} 21. f3 {[%clk 0:01:50]}  Nc5 {[%clk 0:01:34]} 22. Nbd5 {[%clk 0:01:41]}  Bxd5 {[%clk 0:01:33]} 23. cxd5 {[%clk 0:01:38]}  b5 {[%clk 0:01:28]} 24. b4 {[%clk 0:01:36]}  Ncd7 {[%clk 0:01:26]} 25. a4 {[%clk 0:01:35]}  a5 {[%clk 0:00:53]} 26. Nxb5 {[%clk 0:01:28]}  axb4 {[%clk 0:00:52]} 27. a5 {[%clk 0:01:01]}  Nc5 {[%clk 0:00:49]} 28. Bxc5 {[%clk 0:01:01]}  dxc5 {[%clk 0:00:48]} 29. a6 {[%clk 0:01:01]}  Qxd5 {[%clk 0:00:42]} 30. Rad1 {[%clk 0:00:54]}  Qc6 {[%clk 0:00:32]} 31. Qd6 {[%clk 0:00:47]}  Rb6 {[%clk 0:00:32]} 32. a7 {[%clk 0:00:41]}  Qxd6 {[%clk 0:00:28]} 33. Rxd6 {[%clk 0:00:37]}  Rxd6 {[%clk 0:00:28]} 34. Nxd6 {[%clk 0:00:38]}  Ra8 {[%clk 0:00:29]} 35. Nb5 {[%clk 0:00:35]}  Nd5 {[%clk 0:00:24]} 36. Bc4 {[%clk 0:00:35]}  Nc3 {[%clk 0:00:24]} 37. Re7 {[%clk 0:00:12]}  Nxb5 {[%clk 0:00:24]} 38. Bxb5 {[%clk 0:00:13]}  b3 {[%clk 0:00:24]} 39. Bc4 {[%clk 0:00:13]}  b2 {[%clk 0:00:23]} 40. Rb7 {[%clk 0:00:13]}  Rxa7 {[%clk 0:00:21]} 41. Rb8+ {[%clk 0:00:10]}  Bf8 {[%clk 0:00:22]} 42. Rxb2 {[%clk 0:00:11]}  Kg7 {[%clk 0:00:22]} 43. Rc2 {[%clk 0:00:12]}  Bd6 {[%clk 0:00:22]} 44. Kf2 {[%clk 0:00:12]}  Be5 {[%clk 0:00:22]} 45. g3 {[%clk 0:00:12]}  Bd4+ {[%clk 0:00:22]} 46. Kg2 {[%clk 0:00:12]}  Ra3 {[%clk 0:00:22]} 47. f4 {[%clk 0:00:13]}  f5 {[%clk 0:00:22]} 48. Bd5 {[%clk 0:00:13]}  Kf6 {[%clk 0:00:22]} 49. Bc4 {[%clk 0:00:14]}  g5 {[%clk 0:00:20]} 50. fxg5+ {[%clk 0:00:13]}  Kxg5 {[%clk 0:00:21]} 51. Be6 {[%clk 0:00:14]}  f4 {[%clk 0:00:21]} 52. gxf4+ {[%clk 0:00:15]}  Kxf4 {[%clk 0:00:22]} 53. Bc4 {[%clk 0:00:15]}  Ke3 {[%clk 0:00:22]} 54. Re2+ {[%clk 0:00:15]}  Kf4 {[%clk 0:00:22]} 55. Rc2 {[%clk 0:00:16]}  h6 {[%clk 0:00:21]} 56. Bg8 {[%clk 0:00:15]}  h5 {[%clk 0:00:17]} 57. Bc4 {[%clk 0:00:15]}  h4 {[%clk 0:00:17]} 58. Be6 {[%clk 0:00:14]}  Re3 {[%clk 0:00:17]} 59. Bc8 {[%clk 0:00:14]}  Ke4 {[%clk 0:00:15]} 60. h3 {[%clk 0:00:05]}  Rg3+ {[%clk 0:00:15]} 61. Kh2 {[%clk 0:00:05]}  Kd3 {[%clk 0:00:15]} 62. Bf5+ {[%clk 0:00:05]}  Ke3 {[%clk 0:00:15]} 63. Be6 {[%clk 0:00:05]}  Rf3 {[%clk 0:00:10]} 64. Bg4 {[%clk 0:00:05]}  Rf1 {[%clk 0:00:06]} 65. Kg2 {[%clk 0:00:05]}  Rf4 {[%clk 0:00:05]} 66. Be6 {[%clk 0:00:05]}  Kd3 {[%clk 0:00:05]} 67. Ra2 {[%clk 0:00:03]}  Bc3 {[%clk 0:00:05]} 68. Bg8 {[%clk 0:00:01]}  Rf6 {[%clk 0:00:04]} 69. Bh7+ {[%clk 0:00:02]}  Kc4 {[%clk 0:00:03]} 70. Rf2 {[%clk 0:00:02]}  Rd6 {[%clk 0:00:01]} 71. Bg8+ {[%clk 0:00:03]}  Kb4 {[%clk 0:00:01]} 72. Rf4+ {[%clk 0:00:03]}  Ka3 {[%clk 0:00:01]} 73. Rxh4 {[%clk 0:00:04]}  Bb4 {[%clk 0:00:02]} 74. Rg4 {[%clk 0:00:04]}  Rd2+ {[%clk 0:00:02]} 75. Kg3 {[%clk 0:00:04]}  Bc3 {[%clk 0:00:03]} 76. h4 {[%clk 0:00:04]}  Bd4 {[%clk 0:00:03]} 77. h5 {[%clk 0:00:04]}  Rd1 {[%clk 0:00:04]} 78. Kf4 {[%clk 0:00:04]}  Rf1+ {[%clk 0:00:03]} 79. Kg5 {[%clk 0:00:05]}  Be3+ {[%clk 0:00:04]} 80. Kg6 {[%clk 0:00:05]}  Bd4 {[%clk 0:00:04]} 81. h6 {[%clk 0:00:05]}  Rf6+ {[%clk 0:00:04]} 82. Kg5 {[%clk 0:00:05]}  Rf1 {[%clk 0:00:03]} 83. h7 {[%clk 0:00:06]}  Rh1 {[%clk 0:00:03]} 84. Kg6 {[%clk 0:00:03]}  Kb2 {[%clk 0:00:03]} 85. Be6 {[%clk 0:00:03]}  Kc3 {[%clk 0:00:02]} 86. Rg3+ {[%clk 0:00:04]}  Kd2 {[%clk 0:00:02]} 87. Bh3 {[%clk 0:00:02]} 1-0


[Site "https://www.chess.com"]

[Event "Titled Tuesday Blitz February 22 Early 2022"]
[White "Maevsky, Nikolay"]
[Black "Medeiros Jr, Francisco De Assis"]
[WhiteFideId "4198220"]
[BlackFideId "2114267"]
[WhiteElo "2104"]
[BlackElo "1998"]
[Result "0-1"]
[Round "07"]
[TimeControl "180+1"]
[Date "2022.02.22"]
[WhiteClock "0:00:05"]
[BlackClock "0:00:10"]

1. d4 {[%clk 0:03:00]}  d5 {[%clk 0:02:58]} 2. Nf3 {[%clk 0:03:01]}  Nf6 {[%clk 0:02:57]} 3. e3 {[%clk 0:03:01]}  Bf5 {[%clk 0:02:56]} 4. Nbd2 {[%clk 0:03:01]}  e6 {[%clk 0:02:56]} 5. Ne5 {[%clk 0:02:59]}  Nbd7 {[%clk 0:02:55]} 6. g4 {[%clk 0:02:58]}  Nxe5 {[%clk 0:02:27]} 7. gxf5 {[%clk 0:02:58]}  Ned7 {[%clk 0:02:19]} 8. fxe6 {[%clk 0:02:58]}  fxe6 {[%clk 0:02:20]} 9. c4 {[%clk 0:02:58]}  Bb4 {[%clk 0:02:16]} 10. Qb3 {[%clk 0:02:56]}  c5 {[%clk 0:02:13]} 11. Bh3 {[%clk 0:02:56]}  Ne4 {[%clk 0:02:06]} 12. Bxe6 {[%clk 0:02:45]}  Rf8 {[%clk 0:01:51]} 13. Rf1 {[%clk 0:02:19]}  Qh4 {[%clk 0:01:38]} 14. Kd1 {[%clk 0:01:31]}  O-O-O {[%clk 0:00:58]} 15. cxd5 {[%clk 0:01:13]}  Rxf2 {[%clk 0:00:47]} 16. Rxf2 {[%clk 0:01:07]}  Nxf2+ {[%clk 0:00:33]} 17. Kc2 {[%clk 0:01:06]}  Bxd2 {[%clk 0:00:31]} 18. Bxd2 {[%clk 0:01:05]}  Qe4+ {[%clk 0:00:29]} 19. Kc1 {[%clk 0:00:50]}  Qh1+ {[%clk 0:00:26]} 20. Kc2 {[%clk 0:00:49]}  Qxa1 {[%clk 0:00:26]} 21. Bc1 {[%clk 0:00:40]}  cxd4 {[%clk 0:00:13]} 22. exd4 {[%clk 0:00:36]}  Kb8 {[%clk 0:00:14]} 23. Qg3+ {[%clk 0:00:36]}  Ka8 {[%clk 0:00:12]} 24. Qc7 {[%clk 0:00:28]}  Rb8 {[%clk 0:00:10]} 25. Bxd7 {[%clk 0:00:25]}  Qxa2 {[%clk 0:00:10]} 26. Be6 {[%clk 0:00:17]}  Qa4+ {[%clk 0:00:10]} 27. Kb1 {[%clk 0:00:17]}  Nd3 {[%clk 0:00:08]} 28. Bf4 {[%clk 0:00:14]}  Rf8 {[%clk 0:00:06]} 29. Bc1 {[%clk 0:00:07]}  Rb8 {[%clk 0:00:05]} 30. d6 {[%clk 0:00:06]}  Qxd4 {[%clk 0:00:04]} 31. d7 {[%clk 0:00:05]}  Qe5 {[%clk 0:00:01]} 32. Qxe5 {[%clk 0:00:04]}  Nxe5 {[%clk 0:00:02]} 33. Bf4 {[%clk 0:00:04]}  Nc6 {[%clk 0:00:02]} 34. Bxb8 {[%clk 0:00:03]}  Kxb8 {[%clk 0:00:03]} 35. Bf7 {[%clk 0:00:04]}  Kc7 {[%clk 0:00:03]} 36. Be6 {[%clk 0:00:04]}  Nd8 {[%clk 0:00:03]} 37. Bf5 {[%clk 0:00:04]}  Kd6 {[%clk 0:00:03]} 38. Bxh7 {[%clk 0:00:04]}  Kxd7 {[%clk 0:00:04]} 39. Be4 {[%clk 0:00:05]}  b6 {[%clk 0:00:04]} 40. Kc2 {[%clk 0:00:05]}  Kd6 {[%clk 0:00:04]} 41. Kc3 {[%clk 0:00:05]}  Ne6 {[%clk 0:00:05]} 42. Kc4 {[%clk 0:00:05]}  Nc5 {[%clk 0:00:04]} 43. Bc2 {[%clk 0:00:05]}  Kc7 {[%clk 0:00:04]} 44. b4 {[%clk 0:00:05]}  Nd7 {[%clk 0:00:03]} 45. Kd5 {[%clk 0:00:04]}  Nf6+ {[%clk 0:00:04]} 46. Ke6 {[%clk 0:00:04]}  Ng4 {[%clk 0:00:04]} 47. h4 {[%clk 0:00:04]}  a5 {[%clk 0:00:04]} 48. b5 {[%clk 0:00:01]}  Ne3 {[%clk 0:00:03]} 49. Bd3 {[%clk 0:00:01]}  a4 {[%clk 0:00:03]} 50. Kf7 {[%clk 0:00:01]}  Nd5 {[%clk 0:00:03]} 51. Bb1 {[%clk 0:00:01]}  Kd6 {[%clk 0:00:04]} 52. Ba2 {[%clk 0:00:01]}  Nc3 {[%clk 0:00:03]} 53. Bc4 {[%clk 0:00:01]}  Kc5 {[%clk 0:00:03]} 54. Bd3 {[%clk 0:00:02]}  a3 {[%clk 0:00:04]} 55. Kxg7 {[%clk 0:00:02]}  a2 {[%clk 0:00:04]} 56. h5 {[%clk 0:00:03]}  a1=Q {[%clk 0:00:05]} 57. h6 {[%clk 0:00:04]}  Nd5+ {[%clk 0:00:05]} 58. Kg8 {[%clk 0:00:02]}  Nf6+ {[%clk 0:00:05]} 59. Kg7 {[%clk 0:00:01]}  Kd6 {[%clk 0:00:05]} 60. Bg6 {[%clk 0:00:01]}  Ke7 {[%clk 0:00:05]} 61. h7 {[%clk 0:00:02]}  Nxh7+ {[%clk 0:00:05]} 62. Kxh7 {[%clk 0:00:02]}  Kf6 {[%clk 0:00:06]} 63. Kh6 {[%clk 0:00:03]}  Qb2 {[%clk 0:00:06]} 64. Bh5 {[%clk 0:00:03]}  Qxb5 {[%clk 0:00:06]} 65. Kh7 {[%clk 0:00:04]}  Qc5 {[%clk 0:00:07]} 66. Kg8 {[%clk 0:00:04]}  b5 {[%clk 0:00:07]} 67. Bf7 {[%clk 0:00:05]}  b4 {[%clk 0:00:08]} 68. Bb3 {[%clk 0:00:05]}  Qc8+ {[%clk 0:00:08]} 69. Kh7 {[%clk 0:00:05]}  Qc7+ {[%clk 0:00:09]} 70. Kh6 {[%clk 0:00:05]}  Qg7+ {[%clk 0:00:09]} 71. Kh5 {[%clk 0:00:05]}  Qg5# {[%clk 0:00:10]} 0-1


[Site "https://www.chess.com"]

[Event "Titled Tuesday Blitz February 22 Early 2022"]
[White "Marcinczyk, Monika"]
[Black "Mirzanurov, Bulat"]
[WhiteFideId "1192051"]
[BlackFideId "4184521"]
[WhiteElo "1730"]
[BlackElo "2116"]
[Result "0-1"]
[Round "07"]
[TimeControl "180+1"]
[Date "2022.02.22"]
[WhiteClock "0:00:02"]
[BlackClock "0:00:47"]

1. e4 {[%clk 0:01:59]}  c5 {[%clk 0:02:58]} 2. Nf3 {[%clk 0:01:58]}  d6 {[%clk 0:02:58]} 3. d4 {[%clk 0:01:58]}  cxd4 {[%clk 0:02:58]} 4. Nxd4 {[%clk 0:01:59]}  Nf6 {[%clk 0:02:59]} 5. Nc3 {[%clk 0:01:59]}  a6 {[%clk 0:02:59]} 6. Be2 {[%clk 0:02:00]}  e5 {[%clk 0:02:57]} 7. Nb3 {[%clk 0:02:00]}  Be7 {[%clk 0:02:57]} 8. Be3 {[%clk 0:02:00]}  O-O {[%clk 0:02:55]} 9. O-O {[%clk 0:02:00]}  Nbd7 {[%clk 0:02:55]} 10. h3 {[%clk 0:01:58]}  b5 {[%clk 0:02:55]} 11. a4 {[%clk 0:01:56]}  b4 {[%clk 0:02:53]} 12. Nd5 {[%clk 0:01:56]}  Nxd5 {[%clk 0:02:46]} 13. Qxd5 {[%clk 0:01:50]}  Rb8 {[%clk 0:02:46]} 14. a5 {[%clk 0:01:51]}  Bb7 {[%clk 0:02:44]} 15. Qd3 {[%clk 0:01:49]}  Nf6 {[%clk 0:02:44]} 16. Bf3 {[%clk 0:01:49]}  Re8 {[%clk 0:02:36]} 17. Rfd1 {[%clk 0:01:45]}  Bc6 {[%clk 0:02:17]} 18. Bb6 {[%clk 0:01:37]}  Qd7 {[%clk 0:02:12]} 19. Qc4 {[%clk 0:01:24]}  Bb5 {[%clk 0:02:08]} 20. Qxb4 {[%clk 0:01:24]}  d5 {[%clk 0:02:07]} 21. Qe1 {[%clk 0:01:11]}  d4 {[%clk 0:02:01]} 22. c3 {[%clk 0:00:54]}  d3 {[%clk 0:01:59]} 23. Nc1 {[%clk 0:00:54]}  Bd8 {[%clk 0:01:40]} 24. Nxd3 {[%clk 0:00:49]}  Bxd3 {[%clk 0:01:36]} 25. Be2 {[%clk 0:00:44]}  Bxb6 {[%clk 0:01:32]} 26. Rxd3 {[%clk 0:00:43]}  Bxf2+ {[%clk 0:01:23]} 27. Qxf2 {[%clk 0:00:43]}  Qc6 {[%clk 0:01:20]} 28. Bf3 {[%clk 0:00:39]}  Nxe4 {[%clk 0:01:18]} 29. Qh4 {[%clk 0:00:15]}  f5 {[%clk 0:01:14]} 30. Bxe4 {[%clk 0:00:15]}  fxe4 {[%clk 0:01:12]} 31. Rd2 {[%clk 0:00:14]}  e3 {[%clk 0:01:10]} 32. Re2 {[%clk 0:00:14]}  Re6 {[%clk 0:01:04]} 33. Rf1 {[%clk 0:00:08]}  Ree8 {[%clk 0:01:01]} 34. Qg5 {[%clk 0:00:06]}  h6 {[%clk 0:01:00]} 35. Qxe3 {[%clk 0:00:06]}  e4 {[%clk 0:00:58]} 36. Qf4 {[%clk 0:00:04]}  Qc4 {[%clk 0:00:52]} 37. Ref2 {[%clk 0:00:02]}  Rf8 {[%clk 0:00:47]} 0-1


[Site "https://www.chess.com"]

[Event "Titled Tuesday Blitz February 22 Early 2022"]
[White "Martins, Bruno Andre Leite"]
[Black "Zheenbekov, Nurgazy"]
[WhiteFideId "1942255"]
[BlackFideId "13800485"]
[WhiteElo "2137"]
[BlackElo "1959"]
[Result "0-1"]
[Round "07"]
[TimeControl "180+1"]
[Date "2022.02.22"]
[WhiteClock "0:00:01"]
[BlackClock "0:00:25"]

1. e4 {[%clk 0:03:00]}  e5 {[%clk 0:02:58]} 2. Nf3 {[%clk 0:03:00]}  Nc6 {[%clk 0:02:58]} 3. Bb5 {[%clk 0:03:01]}  a6 {[%clk 0:02:57]} 4. Ba4 {[%clk 0:03:01]}  Nf6 {[%clk 0:02:57]} 5. d3 {[%clk 0:03:01]}  b5 {[%clk 0:02:56]} 6. Bb3 {[%clk 0:03:01]}  Be7 {[%clk 0:02:56]} 7. O-O {[%clk 0:03:00]}  O-O {[%clk 0:02:56]} 8. c3 {[%clk 0:03:00]}  d6 {[%clk 0:02:55]} 9. Re1 {[%clk 0:02:58]}  Na5 {[%clk 0:02:46]} 10. Bc2 {[%clk 0:02:58]}  c5 {[%clk 0:02:47]} 11. Nbd2 {[%clk 0:02:56]}  Nc6 {[%clk 0:02:47]} 12. Nf1 {[%clk 0:02:56]}  Re8 {[%clk 0:02:27]} 13. Ng3 {[%clk 0:02:51]}  Bf8 {[%clk 0:02:27]} 14. a4 {[%clk 0:02:43]}  Rb8 {[%clk 0:02:25]} 15. Bg5 {[%clk 0:02:40]}  h6 {[%clk 0:02:23]} 16. Be3 {[%clk 0:02:40]}  Ne7 {[%clk 0:02:22]} 17. h3 {[%clk 0:02:37]}  Ng6 {[%clk 0:02:22]} 18. Nh2 {[%clk 0:02:34]}  d5 {[%clk 0:02:21]} 19. axb5 {[%clk 0:02:32]}  d4 {[%clk 0:02:15]} 20. cxd4 {[%clk 0:02:14]}  cxd4 {[%clk 0:02:15]} 21. Bd2 {[%clk 0:02:14]}  axb5 {[%clk 0:02:10]} 22. Bb3 {[%clk 0:02:15]}  Be6 {[%clk 0:02:08]} 23. Bxe6 {[%clk 0:02:14]}  Rxe6 {[%clk 0:01:54]} 24. Nf5 {[%clk 0:02:12]}  b4 {[%clk 0:01:43]} 25. Ng4 {[%clk 0:01:37]}  Nxg4 {[%clk 0:01:40]} 26. Qxg4 {[%clk 0:01:38]}  Rc8 {[%clk 0:01:32]} 27. h4 {[%clk 0:01:27]}  Kh8 {[%clk 0:01:31]} 28. Ra7 {[%clk 0:01:22]}  Rc7 {[%clk 0:01:30]} 29. Rea1 {[%clk 0:01:19]}  Ne7 {[%clk 0:01:27]} 30. Rxc7 {[%clk 0:01:13]}  Qxc7 {[%clk 0:01:26]} 31. Ra8 {[%clk 0:01:14]}  Nc8 {[%clk 0:01:17]} 32. Bxb4 {[%clk 0:01:12]}  Rg6 {[%clk 0:01:14]} 33. Qh3 {[%clk 0:00:31]}  Qb7 {[%clk 0:01:09]} 34. Bxf8 {[%clk 0:00:18]}  Qxa8 {[%clk 0:01:09]} 35. h5 {[%clk 0:00:18]}  Rg5 {[%clk 0:01:06]} 36. Nxh6 {[%clk 0:00:06]}  gxh6 {[%clk 0:00:57]} 37. Bxh6 {[%clk 0:00:06]}  Rg8 {[%clk 0:00:45]} 38. Qd7 {[%clk 0:00:04]}  Qa1+ {[%clk 0:00:37]} 39. Kh2 {[%clk 0:00:04]}  Qf1 {[%clk 0:00:37]} 40. Qh3 {[%clk 0:00:01]}  Qxf2 {[%clk 0:00:35]} 41. b4 {[%clk 0:00:01]}  Nd6 {[%clk 0:00:30]} 42. b5 {[%clk 0:00:02]}  Nxb5 {[%clk 0:00:30]} 43. Bc1 {[%clk 0:00:01]}  Nc3 {[%clk 0:00:25]} 44. h6 {[%clk 0:00:01]}  Ne2 {[%clk 0:00:25]} 0-1


[Site "https://www.chess.com"]

[Event "Titled Tuesday Blitz February 22 Early 2022"]
[White "Matinian, Nikita"]
[Black "Galyas, Miklos"]
[WhiteFideId "24129100"]
[BlackFideId "707244"]
[WhiteElo "2422"]
[BlackElo "2409"]
[Result "1-0"]
[Round "07"]
[TimeControl "180+1"]
[Date "2022.02.22"]
[WhiteClock "0:00:58"]
[BlackClock "0:00:30"]

1. e4 {[%clk 0:03:00]}  d6 {[%clk 0:02:59]} 2. d4 {[%clk 0:03:01]}  Nf6 {[%clk 0:02:59]} 3. Nc3 {[%clk 0:03:01]}  g6 {[%clk 0:02:59]} 4. Be3 {[%clk 0:02:57]}  a6 {[%clk 0:02:59]} 5. h3 {[%clk 0:02:52]}  Bg7 {[%clk 0:02:58]} 6. g4 {[%clk 0:02:51]}  Nc6 {[%clk 0:02:44]} 7. Nge2 {[%clk 0:02:49]}  e5 {[%clk 0:02:42]} 8. d5 {[%clk 0:02:48]}  Ne7 {[%clk 0:02:42]} 9. Ng3 {[%clk 0:02:47]}  h5 {[%clk 0:02:39]} 10. g5 {[%clk 0:02:47]}  Nd7 {[%clk 0:02:39]} 11. h4 {[%clk 0:02:47]}  b5 {[%clk 0:02:37]} 12. a4 {[%clk 0:02:45]}  b4 {[%clk 0:02:36]} 13. Na2 {[%clk 0:02:43]}  a5 {[%clk 0:02:34]} 14. c3 {[%clk 0:02:42]}  Rb8 {[%clk 0:02:25]} 15. cxb4 {[%clk 0:02:42]}  axb4 {[%clk 0:02:25]} 16. Bb5 {[%clk 0:02:34]}  O-O {[%clk 0:02:25]} 17. Nxb4 {[%clk 0:02:32]}  f5 {[%clk 0:02:21]} 18. exf5 {[%clk 0:02:32]}  Nxf5 {[%clk 0:02:16]} 19. Nxf5 {[%clk 0:02:31]}  Rxf5 {[%clk 0:02:14]} 20. Nc6 {[%clk 0:02:31]}  Qf8 {[%clk 0:02:12]} 21. Nxb8 {[%clk 0:02:31]}  Nxb8 {[%clk 0:02:11]} 22. Rc1 {[%clk 0:02:29]}  Rf7 {[%clk 0:01:56]} 23. a5 {[%clk 0:02:15]}  e4 {[%clk 0:01:55]} 24. Qc2 {[%clk 0:02:10]}  Na6 {[%clk 0:01:50]} 25. Qxe4 {[%clk 0:02:04]}  Re7 {[%clk 0:01:43]} 26. Qxg6 {[%clk 0:01:48]}  Bf5 {[%clk 0:01:36]} 27. Qxh5 {[%clk 0:01:47]}  Nb4 {[%clk 0:01:34]} 28. Be2 {[%clk 0:01:31]}  Nxd5 {[%clk 0:01:22]} 29. Bc4 {[%clk 0:01:25]}  Be6 {[%clk 0:01:20]} 30. Bxd5 {[%clk 0:01:20]}  Bxd5 {[%clk 0:01:20]} 31. g6 {[%clk 0:01:20]}  Qa8 {[%clk 0:01:02]} 32. O-O {[%clk 0:01:02]}  Bf3 {[%clk 0:00:39]} 33. Qh7+ {[%clk 0:00:59]}  Kf8 {[%clk 0:00:39]} 34. Bh6 {[%clk 0:00:59]}  Bxh6 {[%clk 0:00:30]} 35. Qh8# {[%clk 0:00:58]} 1-0


[Site "https://www.chess.com"]

[Event "Titled Tuesday Blitz February 22 Early 2022"]
[White "Matveeva, Olga"]
[Black "De Souza, Cristiano Gomes"]
[WhiteFideId "24107018"]
[BlackFideId "2151758"]
[WhiteElo "2083"]
[BlackElo "2068"]
[Result "1/2-1/2"]
[Round "07"]
[TimeControl "180+1"]
[Date "2022.02.22"]
[WhiteClock "0:00:35"]
[BlackClock "0:01:27"]

1. e4 {[%clk 0:02:56]}  c5 {[%clk 0:02:58]} 2. Nf3 {[%clk 0:02:56]}  d6 {[%clk 0:02:59]} 3. Bb5+ {[%clk 0:02:54]}  Bd7 {[%clk 0:02:56]} 4. Bxd7+ {[%clk 0:02:46]}  Qxd7 {[%clk 0:02:56]} 5. c4 {[%clk 0:02:44]}  Nc6 {[%clk 0:02:55]} 6. Nc3 {[%clk 0:02:41]}  g6 {[%clk 0:02:55]} 7. d4 {[%clk 0:02:38]}  cxd4 {[%clk 0:02:54]} 8. Nxd4 {[%clk 0:02:37]}  Bg7 {[%clk 0:02:55]} 9. Be3 {[%clk 0:02:35]}  Nf6 {[%clk 0:02:54]} 10. f3 {[%clk 0:02:33]}  O-O {[%clk 0:02:54]} 11. O-O {[%clk 0:02:32]}  a5 {[%clk 0:02:52]} 12. b3 {[%clk 0:02:19]}  Nxd4 {[%clk 0:02:51]} 13. Bxd4 {[%clk 0:02:19]}  Qc6 {[%clk 0:02:51]} 14. Rc1 {[%clk 0:02:15]}  Nd7 {[%clk 0:02:50]} 15. Bxg7 {[%clk 0:02:13]}  Kxg7 {[%clk 0:02:49]} 16. Qd4+ {[%clk 0:02:13]}  Kg8 {[%clk 0:02:49]} 17. Rfd1 {[%clk 0:02:13]}  Qc5 {[%clk 0:02:48]} 18. Nd5 {[%clk 0:02:05]}  Qxd4+ {[%clk 0:02:38]} 19. Rxd4 {[%clk 0:02:06]}  Rae8 {[%clk 0:02:34]} 20. Rcd1 {[%clk 0:02:02]}  Nc5 {[%clk 0:02:33]} 21. Kf2 {[%clk 0:01:58]}  Kg7 {[%clk 0:02:31]} 22. Ke3 {[%clk 0:01:57]}  f5 {[%clk 0:02:28]} 23. Nc3 {[%clk 0:01:39]}  fxe4 {[%clk 0:02:21]} 24. fxe4 {[%clk 0:01:39]}  Rf7 {[%clk 0:02:18]} 25. Rd5 {[%clk 0:01:29]}  Ref8 {[%clk 0:02:16]} 26. R1d2 {[%clk 0:01:29]}  Rf1 {[%clk 0:02:15]} 27. Nb5 {[%clk 0:01:21]}  Re1+ {[%clk 0:02:12]} 28. Re2 {[%clk 0:01:20]}  Rff1 {[%clk 0:02:11]} 29. e5 {[%clk 0:01:15]}  Rxe2+ {[%clk 0:02:03]} 30. Kxe2 {[%clk 0:01:15]}  Ra1 {[%clk 0:01:59]} 31. exd6 {[%clk 0:01:14]}  Rxa2+ {[%clk 0:01:57]} 32. Ke3 {[%clk 0:01:08]}  exd6 {[%clk 0:01:57]} 33. Nxd6 {[%clk 0:01:04]}  Nxb3 {[%clk 0:01:57]} 34. Nxb7 {[%clk 0:01:04]}  a4 {[%clk 0:01:56]} 35. c5 {[%clk 0:01:02]}  Rc2 {[%clk 0:01:54]} 36. Rd7+ {[%clk 0:00:49]}  Kf6 {[%clk 0:01:50]} 37. Rd6+ {[%clk 0:00:46]}  Ke5 {[%clk 0:01:47]} 38. Ra6 {[%clk 0:00:44]}  Nxc5 {[%clk 0:01:40]} 39. Nxc5 {[%clk 0:00:39]}  Rxc5 {[%clk 0:01:38]} 40. Rxa4 {[%clk 0:00:39]}  Rc2 {[%clk 0:01:38]} 41. Kf3 {[%clk 0:00:38]}  h5 {[%clk 0:01:34]} 42. Ra5+ {[%clk 0:00:37]}  Kf6 {[%clk 0:01:34]} 43. Ra6+ {[%clk 0:00:37]}  Kg5 {[%clk 0:01:33]} 44. Ra5+ {[%clk 0:00:37]}  Kh6 {[%clk 0:01:33]} 45. h4 {[%clk 0:00:36]}  Rc4 {[%clk 0:01:31]} 46. g3 {[%clk 0:00:36]}  Rc3+ {[%clk 0:01:31]} 47. Kf4 {[%clk 0:00:35]}  Rc4+ {[%clk 0:01:31]} 48. Kf3 {[%clk 0:00:35]}  Rc3+ {[%clk 0:01:31]} 49. Kf4 {[%clk 0:00:35]}  Rc4+ {[%clk 0:01:27]} 50. Kf3 {[%clk 0:00:35]} 1/2-1/2


[Site "https://www.chess.com"]

[Event "Titled Tuesday Blitz February 22 Early 2022"]
[White "Mena, Ailen Oriana"]
[Black "Clawitter, Craig"]
[WhiteFideId "3902773"]
[BlackFideId "2023105"]
[WhiteElo "1534"]
[BlackElo "2221"]
[Result "1-0"]
[Round "07"]
[TimeControl "180+1"]
[Date "2022.02.22"]
[WhiteClock "0:00:22"]
[BlackClock "0:00:11"]

1. e4 {[%clk 0:03:00]}  e6 {[%clk 0:03:00]} 2. d4 {[%clk 0:03:00]}  d5 {[%clk 0:03:00]} 3. Nd2 {[%clk 0:02:59]}  Be7 {[%clk 0:03:00]} 4. g3 {[%clk 0:02:46]}  Nf6 {[%clk 0:02:51]} 5. Bg2 {[%clk 0:02:45]}  dxe4 {[%clk 0:02:48]} 6. Nxe4 {[%clk 0:02:46]}  Nxe4 {[%clk 0:02:48]} 7. Bxe4 {[%clk 0:02:46]}  Nd7 {[%clk 0:02:45]} 8. Ne2 {[%clk 0:02:41]}  Nf6 {[%clk 0:02:44]} 9. Bg2 {[%clk 0:02:40]}  O-O {[%clk 0:02:41]} 10. O-O {[%clk 0:02:41]}  c5 {[%clk 0:02:38]} 11. c3 {[%clk 0:02:34]}  Qb6 {[%clk 0:02:24]} 12. Qc2 {[%clk 0:02:26]}  Bd7 {[%clk 0:02:21]} 13. Be3 {[%clk 0:02:25]}  Rac8 {[%clk 0:02:17]} 14. Rad1 {[%clk 0:02:16]}  Rfd8 {[%clk 0:02:05]} 15. dxc5 {[%clk 0:02:09]}  Bxc5 {[%clk 0:02:04]} 16. Bxc5 {[%clk 0:02:05]}  Rxc5 {[%clk 0:02:00]} 17. Rd4 {[%clk 0:02:00]}  Bc6 {[%clk 0:01:45]} 18. Rxd8+ {[%clk 0:01:56]}  Qxd8 {[%clk 0:01:44]} 19. Rd1 {[%clk 0:01:48]}  Qc7 {[%clk 0:01:26]} 20. Nd4 {[%clk 0:01:26]}  Bxg2 {[%clk 0:01:22]} 21. Kxg2 {[%clk 0:01:27]}  g6 {[%clk 0:01:05]} 22. Qa4 {[%clk 0:01:15]}  a6 {[%clk 0:00:59]} 23. Qb3 {[%clk 0:01:07]}  Kg7 {[%clk 0:00:52]} 24. Re1 {[%clk 0:00:55]}  Qd7 {[%clk 0:00:28]} 25. Rxe6 {[%clk 0:00:51]}  fxe6 {[%clk 0:00:20]} 26. Nxe6+ {[%clk 0:00:50]}  Kh6 {[%clk 0:00:20]} 27. Nxc5 {[%clk 0:00:47]}  Qc6+ {[%clk 0:00:20]} 28. f3 {[%clk 0:00:41]}  Qxc5 {[%clk 0:00:20]} 29. Qxb7 {[%clk 0:00:41]}  Qd5 {[%clk 0:00:19]} 30. Qxd5 {[%clk 0:00:37]}  Nxd5 {[%clk 0:00:19]} 31. c4 {[%clk 0:00:35]}  Ne3+ {[%clk 0:00:18]} 32. Kf2 {[%clk 0:00:33]}  Nxc4 {[%clk 0:00:19]} 33. b3 {[%clk 0:00:33]}  Nd6 {[%clk 0:00:18]} 34. Ke3 {[%clk 0:00:32]}  Kg5 {[%clk 0:00:19]} 35. Kd4 {[%clk 0:00:31]}  Kf6 {[%clk 0:00:18]} 36. Kd5 {[%clk 0:00:31]}  Ke7 {[%clk 0:00:18]} 37. Kc6 {[%clk 0:00:30]}  h5 {[%clk 0:00:17]} 38. Kb6 {[%clk 0:00:29]}  Nf5 {[%clk 0:00:17]} 39. Kxa6 {[%clk 0:00:29]}  Ne3 {[%clk 0:00:17]} 40. b4 {[%clk 0:00:29]}  Kd6 {[%clk 0:00:18]} 41. b5 {[%clk 0:00:28]}  Nd5 {[%clk 0:00:15]} 42. b6 {[%clk 0:00:25]}  Kc6 {[%clk 0:00:12]} 43. b7 {[%clk 0:00:23]}  Kc7 {[%clk 0:00:11]} 44. Ka7 {[%clk 0:00:22]} 1-0


[Site "https://www.chess.com"]